Cogmind - Beta 16 @@@ ROGUE MODE // 2025.11.03 @ 21:46:54 Player: rt Result: Destroyed by Autobeam Turret with Autobeam Performance ------------- Evolutions (0) 0 Regions Visited (2) 400 Robots Destroyed (11) 55 Value Destroyed (275) 275 Prototype IDs (0) 0 Alien Tech Used (0) 0 Bonus (0) 0 TOTAL SCORE: 730 Bonus ------- None Cogmind --------- Core Integrity 0/250 Matter 300/300 Energy 176/200 System Corruption 0% Temperature Cool (96) Movement Walking (260) Ox2 Location -10/Subcaves Parts ------- > --- POWER (1) -------- Subdweller Power Source > --- PROPULSION (2) --- Aluminum Leg > --- UTILITY (2) ------ Small Storage Unit Seismic Detector > --- WEAPON (2) ------- Subdweller Laser Subdweller Beam Cannon > --- INVENTORY (8) ---- Light Treads Light Treads Aluminum Leg Aluminum Leg Subdweller Optics Scrap Shield Small Laser Peak State ------------ > --- POWER ------------ Subdweller Power Source > --- PROPULSION ------- Aluminum Leg Aluminum Leg > --- UTILITY ---------- Small Storage Unit Seismic Detector > --- WEAPON ----------- Subdweller Laser Subdweller Beam Cannon > --- INVENTORY -------- Light Treads Light Treads Aluminum Leg Aluminum Leg Wheel Scrap Shield Small Laser [Rating: 11] Favorites ----------- Power Light Ion Engine Engine Light Ion Engine Propulsion Aluminum Leg Leg Aluminum Leg Utility Small Storage Unit Device Seismic Detector Storage Small Storage Unit Weapon Light Assault Rifle Energy Gun Small Laser Energy Cannon Subdweller Beam Cannon Ballistic Gun Light Assault Rifle Build | -11 -10 -10 ------- Run | Yrd Mat Sub Slots Evolved . | . . . Power . | . . . Propulsion . | . . . Utility . | . . . Weapon . | . . . Parts Attached 13 | 7 . 6 Power 3 | 1 . 2 Engine 3 | 1 . 2 Core . | . . . Reactor . | . . . Propulsion 3 | 2 . 1 Treads . | . . . Leg 3 | 2 . 1 Wheel . | . . . Hover . | . . . Flight . | . . . Utility 2 | 2 . . Device 1 | 1 . . Storage 1 | 1 . . Processor . | . . . Hackware . | . . . Protection . | . . . Artifact . | . . . Weapon 5 | 2 . 3 Energy Gun 2 | 1 . 1 Energy Cannon 1 | . . 1 Ballistic Gun 2 | 1 . 1 Ballistic Cannon . | . . . Launcher . | . . . Special Weapon . | . . . Impact Weapon . | . . . Slashing Weapon . | . . . Piercing Weapon . | . . . Special Melee Weapon . | . . . Unidentified Prototypes . | . . . Parts Lost 4 | . 1 3 Power 2 | . 1 1 Propulsion 1 | . . 1 Utility . | . . . Weapon 1 | . . 1 Highest Loss Streak 2 | . 1 2 To Critical Strikes . | . . . Average Backups 5 | 4 5 6 Power . | . 1 . Propulsion 3 | 2 3 4 Utility . | . . . Weapon . | . 1 1 Tool/Special . | . . . Unused Backups 6 | . . 6 Power . | . . . Propulsion 4 | . . 4 Utility 2 | . . 2 Weapon . | . . . Tool/Special . | . . . Average Slot Usage (%) 96 | . 94 97 Engine 12 | . 11 12 Leg 27 | . 28 27 Device 12 | . 11 14 Storage 14 | . 14 14 Energy Gun 10 | . 14 8 Energy Cannon 2 | . . 4 Ballistic Gun 14 | . 14 14 Peak Build Rating 11 | 7 7 11 Average Rating 7 | 5 6 8 On Entrance 4 | . 7 6 Avg Prop Armor Cover (%) . | . . . Naked Turns . | . . . Heaviest Build 23 | 11 11 23 Greatest Support 20 | 20 20 20 Greatest Overweight (x) 2 | . . 2 Average Overweight (x) . | . . . Largest Inventory Capacity 8 | 8 8 8 Average Capacity 7 | 7 8 8 Most Carried 8 | 6 7 8 Average Carried 5 | 4 5 6 Final Capacity 8 | 8 8 8 Final Carried 8 | 5 7 8 Class Distribution -------------------- 100% | Mutant Dominant Class ---------------- Mutant | -10/Materials Mutant | -10/Subcaves Resources | -11 -10 -10 ----------- Run | Yrd Mat Sub Matter Collected 371 | 223 73 75 Remotely . | . . . Salvage Created 352 | 66 173 113 Parts 23 | 5 7 11 Haulers Intercepted . | . . . Recyclers Shooed 2 | . 2 . Parts Field Recycled . | . . . Retrieved Matter . | . . . Parts Self-Destructed 6 | . . 6 Prevented . | . . . Parts Restored . | . . . Kills | -11 -10 -10 ------- Run | Yrd Mat Sub Combat Hostiles Destroyed 8 | . 4 4 Guns 7 | . 4 3 Cannons 1 | . . 1 Classes Destroyed 5 | 1 1 3 Tunneler 3 | 3 . . Swarmer 2 | . . 2 Grunt 4 | . 4 . Sentry 1 | . . 1 Subdweller 1 | . . 1 Best Kill Streak 4 | 1 4 1 Combat Bots Only 4 | . 4 1 Max Kills in Single Turn 1 | 1 1 1 Gunslinging . | . . . Exploded . | . . . Melee . | . . . Uniques/NPCs Destroyed . | . . . Combat | -11 -10 -10 -------- Run | Yrd Mat Sub Hostile Shots Fired 136 | . 19 117 Missed 51 | . 4 47 Hits 85 | . 15 70 Projectile 85 | . 15 70 Critical Strikes 2 | . . 2 Damage Taken 850 | . 196 654 Core 252 | . 22 230 Absorbed by Shields . | . . . Regen/Repaired (Parts) 13 | . 13 . Core Remaining (%) 100 | 100 . . Volleys Fired 42 | 12 13 17 Largest 2 | 2 2 2 Hottest 140 | 60 60 140 Shots Fired 82 | 24 26 32 Gun 74 | 24 26 24 Cannon 8 | . . 8 Launcher . | . . . Special . | . . . Kinetic 41 | 12 13 16 Thermal 41 | 12 13 16 Explosive . | . . . Electromagnetic . | . . . Robot Hit Streak 9 | 9 5 7 Robot Miss Streak 3 | 2 2 3 Penetration Max . | . . . Secondary Targets . | . . . Shots Hit Robots 55 | 19 18 18 Core Hits 24 | 7 10 7 Critical Kills 1 | 1 . . Critical Parts Destroyed . | . . . Critical Strikes 1 | 1 . . Destroy 1 | 1 . . Melee Attacks . | . . . Impact . | . . . Slashing . | . . . Piercing . | . . . Sneak Attacks . | . . . Combat Hostiles . | . . . Follow-up Attacks . | . . . Damage Inflicted 624 | 184 174 266 Guns 540 | 184 174 182 Cannons 84 | . . 84 Explosions . | . . . Melee . | . . . Ramming . | . . . Kinetic 221 | 70 74 77 Thermal 403 | 114 100 189 Explosive . | . . . Electromagnetic . | . . . Impact . | . . . Slashing . | . . . Piercing . | . . . Highest Corruption . | . . . Average Corruption . | . . . Corruption Purged . | . . . Corruption Blocked . | . . . Overload Shots . | . . . Overflow Damage . | . . . Projectiles . | . . . Explosions . | . . . Melee . | . . . Knockbacks . | . . . Impact . | . . . Kinetic . | . . . Secondary . | . . . Self-Inflicted Damage . | . . . Shots . | . . . Rammed . | . . . Targets Rammed . | . . . Kicked . | . . . Crushed . | . . . Highest Temperature 271 | 40 71 271 Average Temperature 36 | 15 30 60 Received Heat Transfer 639 | . 96 543 Siege Activations . | . . . Martial Activations . | . . . Shielding Activations . | . . . Robots Disrupted . | . . . Combat Hostiles . | . . . Robots Corrupted . | . . . Combat Hostiles . | . . . Parts Fried . | . . . Impact Corruptions . | . . . Robots Melted . | . . . Combat Hostiles . | . . . Parts Melted . | . . . Heat Transferred 711 | 250 225 236 Parts Sabotaged . | . . . Parts Stolen . | . . . Parts Stripped . | . . . Power Chain Reactions . | . . . Alert | -11 -10 -10 ------- Run | Yrd Mat Sub Maximum Alert Level . | . . . Low Security (%) 100 | 100 100 . Level 1 . | . . . Level 2 . | . . . Level 3 . | . . . Level 4 . | . . . Level 5 . | . . . High Security . | . . . Max Security . | . . . Peak Influence 70 | 5 70 . Initial 3 | . 3 . Average 6 | . 11 . Influence Increases 328 | 15 103 210 Destroy 0b10 Robot/C 140 | . 80 60 Destroy 0b10 Robot/NC 15 | 15 . . Destroy Leader 20 | . 20 . Successful Hack 3 | . 3 . Lose Combat Pursuer 150 | . . 150 Influence Decreases 250 | 10 58 182 Entered New Map 27 | . 2 25 Time Decay 193 | 10 46 137 Lost Part 30 | . 10 20 Squads Dispatched 1 | . 1 . Investigation 1 | . 1 . Extermination . | . . . Reinforcement . | . . . Assault . | . . . Garrison . | . . . Intercept . | . . . Searches Triggered . | . . . Construction Impeded . | . . . Haulers Reinforced . | . . . Active Scanning Responses . | . . . Cargo Convoy Interrupts . | . . . Stealth | -11 -10 -10 --------- Run | Yrd Mat Sub Distress Signals 1 | . 1 . Communications Jammed . | . . . Distress Signals . | . . . Times Spotted 22 | . 5 17 Peak Tracking Total 6 | . 3 6 Tactical Retreats 4 | . . 4 Traps | -11 -10 -10 ------- Run | Yrd Mat Sub Traps Triggered 1 | . 1 . Indirectly . | . . . Trap Hack Attempts . | . . . Triggered . | . . . Disarmed . | . . . Reprogrammed . | . . . Reused . | . . . Traps Extracted . | . . . Installed . | . . . Triggered . | . . . Machines | -11 -10 -10 ---------- Run | Yrd Mat Sub Machines Disabled . | . . . Max in Single Turn . | . . . Machines Repaired . | . . . Machines Dismantled . | . . . Machines Sabotaged . | . . . Overloaded Fab Kills . | . . . Hacking | -11 -10 -10 --------- Run | Yrd Mat Sub Machines Accessed 2 | . 1 1 Terminals . | . . . Fabricators . | . . . Repair Stations 1 | . 1 . Recycling Units . | . . . Scanalyzers . | . . . Garrison Access . | . . . Total Hacks 8 | . 3 5 Successful 7 | . 2 5 Failed 1 | . 1 . Catastrophic . | . . . Database Lockouts . | . . . Manual 1 | . . 1 Terminals . | . . . Fabricators . | . . . Repair Stations 3 | . 3 . Recycling Units . | . . . Scanalyzers . | . . . Garrison Access . | . . . Terminal Hacks 5 | . . 5 Record 5 | . . 5 Fabricator Hacks . | . . . Repair Station Hacks 2 | . 2 . Scan Component 1 | . 1 . Repair 1 | . 1 . Recycling Unit Hacks . | . . . Scanalyzer . | . . . Garrison Access Hacks . | . . . Unauthorized Hacks . | . . . Terminals . | . . . Fabricators . | . . . Repair Stations . | . . . Recycling Units . | . . . Scanalyzers . | . . . Garrison Access . | . . . Data Cores Recovered . | . . . Used . | . . . Hacking Detections 1 | . 1 . Full Trace Events 1 | . 1 . Feedback Events . | . . . Feedback Blocked . | . . . Robot Schematics Acquired . | . . . Robots Built . | . . . Authchips . | . . . Time . | . . . Total Robot Build Rating . | . . . Part Schematics Acquired . | . . . Parts Built . | . . . Authchips . | . . . Time . | . . . Total Part Build Rating . | . . . Part Studies Acquired . | . . . Parts Repaired 1 | . 1 . Time 26 | . 26 . Parts Recycled . | . . . Recycled Matter . | . . . Retrieved Matter . | . . . Retrieved Components . | . . . Parts Scanalyzed . | . . . Part Schematics Acquired . | . . . Parts Damaged . | . . . Bothacking | -11 -10 -10 ------------ Run | Yrd Mat Sub Used RIF Installer . | . . . Robots Hacked . | . . . Non-combat . | . . . Combat . | . . . Robot Hacks Applied . | . . . Relay Couplers Released . | . . . Fabnet Peak Effective % . | . . . Robots Rewired . | . . . Allies Hacked . | . . . Hacks Repelled . | . . . Allies | -11 -10 -10 -------- Run | Yrd Mat Sub Total Allies . | . . . Largest Group . | . . . Highest-Rated Group . | . . . Highest-Rated Ally . | . . . Total Orders . | . . . Ally Attacks . | . . . Total Damage . | . . . Kills . | . . . Allies Corrupted . | . . . Allies Melted . | . . . Intel | -11 -10 -10 ------- Run | Yrd Mat Sub Active Infowar (turns) 725 | 3 244 478 Seismic 725 | 3 244 478 Robot Analysis Total . | . . . Derelict Logs Recovered . | . . . Drone Launches . | . . . Drone Recoveries . | . . . Exploration | -11 -10 -10 ------------- Run | Yrd Mat Sub Turns Passed 989 | 208 303 478 Spaces Moved 555 | 131 138 286 Core 8 | 8 . . Treads . | . . . Legs 547 | 123 138 286 Wheels . | . . . Hover . | . . . Flight . | . . . Fastest Speed 50 | 50 120 120 Average Speed 127 | 115 120 136 Slowest Speed 260 | 120 120 260 Overloaded Moves . | . . . Propulsion Burnouts . | . . . Robots Hopped . | . . . Potential Cave-ins . | . . . Cave-ins Triggered . | . . . Exploration Rate (%) 12 | 6 16 15 Regions Visited 2 Branch Regions 1 Pre-discovered Areas 1 | . . 1 Known Exits Taken . | . . . Unknown Exits Taken 2 | 1 1 . Scrap Searched 3 | . . 3 Spaces Dug . | . . . Terrain Destroyed 3 | . . 3 Melee . | . . . Projectile 3 | . . 3 AOE . | . . . Terrain Rammed . | . . . Walls Destroyed . | . . . Machines Disabled . | . . . Actions | -11 -10 -10 --------- Run | Yrd Mat Sub Total 761 | 166 252 343 Wait 134 | 5 98 31 Move 553 | 130 137 286 Hop . | . . . Pick Up 17 | 12 3 2 Fast Attach 2 | . . 2 Attach 9 | 7 1 1 Detach . | . . . Swap 3 | . . 3 Drop 1 | . . 1 Fire 42 | 12 13 17 Melee . | . . . Ram . | . . . Kick . | . . . Crush . | . . . Escape Stasis . | . . . Rewire . | . . . Trap . | . . . Miscellaneous . | . . . Route ------- -11/Scrapyard -10/Materials (discovered 2 exits: [*Min] / *Sub) -10/Subcaves (discovered 1 exit: [*Rec]) History --------- Turn | Location | Event 15 | -11/Scrapyard | Discovered new exit (range 14) 209 | -11/Scrapyard | Entered Materials 212 | -10/Materials | Discovered new exit (range 16) 303 | -10/Materials | Build established: Mutant 326 | -10/Materials | Discovered new exit (range 9) 398 | -10/Materials | Repaired Seismic Detector 512 | -10/Materials | Entered Subcaves 513 | -10/Subcaves | Approached by a straggling Scientist 631 | -10/Subcaves | Visited Clippyterm 635 | -10/Subcaves | Learned location of Extension (-5) 635 | -10/Subcaves | Learned Factory garrison access intel 786 | -10/Subcaves | Discovered new exit (range 14) 816 | -10/Subcaves | Core integrity fell below 50% 972 | -10/Subcaves | Core integrity fell below 20% 990 | -10/Subcaves | Destroyed by Autobeam Turret with Autobeam Last Messages --------------- 00824_ Found Sub. Laser. 00824_ Found Sub. Beam Cannon. 00824_ Found 38 Matter. 00825_ Acquired 5 matter. 00826_ Acquired Sub. Beam Cannon. 00829_ Acquired Sub. Laser. 00833_ Searching scrap... 00833_ Found Sub. Power Source. 00833_ Found 59 Matter. 00834_ Acquired 20 matter. 00835_ Acquired Sub. Power Source. 00837_ Acquired 10 matter. 00894_ Critical hit (Meltdown: +300). 00922_ WX-8HN(R) destroyed. 00929_ Dropped Wheel. 00930_ Acquired Sub. Optics. 00974_ Aluminum Leg destroyed. 00975_ S-10 Pest destroyed. 00981_ Lgt. Ion Engine fries itself beyond repair. 00982_ Lgt. Assault Rifle fries itself beyond repair. Map ----- +----------------------------------------------------+ | ?????### ###?## % #??????## %#??????????? | | ???????## #### ##?####??# ##?????????? | | ???????## % ## ##?# ##?# ##????????? | | ???????# # ### ### #?## # ##???????? | | ???????## # #?# % ## ##?## # ##??????? | | ????????# ## # ##?## #??## # #??????? | | ???????## ##% ####???# #???# # #??????? | | ?####### ##?????## ##??## ##??????? | | ?#"""## #??????# #???# %##???????? | | ?#"" ## #?????# ## #???# #????????? | | ?#"X ##????# ### #???# #????????? | | ?#"" ## #????## #?# ##???# ##???????? | | ?#"""### #?????## %#?###???## # #???????? | | ?###### ## #??????# ##??????## # ##???????? | | ?????# #########??????# #??????## # ##????????? | | ?????## #??????????????# ##?????## # # #????????? | | ??????# ##??????????????##??????## # ####????????? | | ??????##???????????????????????## # ##???????????? | | ??????????????????????????????## # ##????????????? | | ?????????????????????????????## # ##?????????????? | | ?????????????#"""????????????# ##??????????????? | | ?????????????#" ?????????## ##???????????????? | | ?????????????#" ######### ##????????????????? | | ?????????????#""t % # ##????????????????? | | ????????????#< ### ##???????????????? | | ?????????????#""t @=# ### ##??????????????? | | ?????????????#" ##;;##s###?## ##?????????????? | | ??????????????" ????#???# #????# #?????????????? | | ?????????????????????????# ##???## #?????????????? | | ?????????????????????????# ##??#%##?????????????? | | ?????????????????????????# # ##?#=#??????????????? | | ?????????????????????????# ## ### #??????????????? | | ?????????????????????????## ## ## ####???????????? | | ???????????????????????????#?## ## #%#???????????? | | ??????????????????????????????## ## ##???????????? | | ???????????????????????????????## ## ###?????????? | | ????????????????????????????????## ##[%#?????????? | | ?????????????????????????????????# #&%##????????? | | ?????????????????????????????????# &## ##???????? | | ????????????????????????????????# ### #&&#???????? | | ???????????????????????????????# #??# = #???????? | | ??????????????????????????????# ???# ##???##### | | ?????????????????????????????# ????# ##### | | ?????????????????????????????##?????## # # | | ?????????????????????????????????????# | | ?????????????????????????????????????# ## | | ?????????????????????????????????????## # # ### | | ??????????????????????????????????????#######?## | | ???????????????????????????????????????????????### | | ?????????????????????????????????????????????????? | +----------------------------------------------------+ Best States ------------- Heat Dissipation 25 Energy Generation 15 Energy Capacity 200 Matter Stores 300 Matter Capacity 300 Sight Range 16 Terrain Scan Density 10 Evasion (%) 55 Item Schematics ----------------- None Robot Schematics ------------------ None Fabricated ------------ Nothing Repaired ---------- Seismic Detector | 35% | -10/Materials Studied --------- None Alien Tech Used ----------------- None Achievements -------------- None Challenges ------------ None Game ------ Seed MetafieldParticleChronowheel Manual? 0 Play Time 00:12:31 Cumulative 11.6 hours Start 2025.11.03 @ 21:36:26 End 2025.11.03 @ 21:46:54 Sessions 1 Manual Loads 0 Difficulty Rogue Special Mode None Game No. 37 Rogue 37 Adventurer 0 Explorer 0 Win Type - Total 0 Types 0/0/0/0/0/0/0/0/0/0 Lore% 10 Gallery% 16 Achievement% 14 Wizard Run 0 Options --------- Layout 1 ASCII 0 Keyboard 0 Movement Numpad Keybinds 0 Fullscreen 1 Font 32/SmallcapsGlow Map View 130x35 Zoom Use 0% Tactical HUD 1 Map Filters NONE Filters NONE Steam 1 RUN: 5bbfea72-28ac-4ea6-898e-2251498a41b7